[Event "*** Biggest EVER Titled Tuesday"]
[Site "Chess.com"]
[Date "2018.04.17"]
[Round "2"]
[White "FairChess_on_YouTube"]
[Black "shyam"]
[Result "1-0"]
[WhiteElo "2892"]
[BlackElo "2564"]
[TimeControl "180+2"]
[EndTime "13:22:56 PDT"]
[Termination "FairChess_on_YouTube won by resignation"]

1. d4 {[%clk 0:03:01.9]} 1... Nf6 {[%clk 0:03:00.3]} 2. Bg5 {[%clk 0:03:02.2]}
2... g6 {[%clk 0:02:58.3]} 3. Bxf6 {[%clk 0:03:01.3]} 3... exf6 {[%clk
0:03:00.2]} 4. c4 {[%clk 0:03:02.6]} 4... Bg7 {[%clk 0:03:00.2]} 5. Nc3 {[%clk
0:03:03.1]} 5... O-O {[%clk 0:03:01.3]} 6. e3 {[%clk 0:03:04.1]} 6... f5 {[%clk
0:03:02.5]} 7. Nge2 {[%clk 0:03:04.8]} 7... c5 {[%clk 0:02:56.9]} 8. dxc5 {[%clk
0:02:56.2]} 8... Na6 {[%clk 0:02:56.5]} 9. g3 {[%clk 0:02:55.9]} 9... Nxc5
{[%clk 0:02:55.5]} 10. Bg2 {[%clk 0:02:56.8]} 10... d6 {[%clk 0:02:53.1]} 11.
O-O {[%clk 0:02:56.7]} 11... Be6 {[%clk 0:02:54.6]} 12. b3 {[%clk 0:02:34.3]}
12... h5 {[%clk 0:02:46.8]} 13. Rc1 {[%clk 0:02:32.3]} 13... h4 {[%clk
0:02:45.3]} 14. Nf4 {[%clk 0:02:31.7]} 14... a5 {[%clk 0:02:19.4]} 15. Nb5
{[%clk 0:02:27.3]} 15... Be5 {[%clk 0:02:18]} 16. Nxe6 {[%clk 0:02:15.2]} 16...
fxe6 {[%clk 0:02:18.6]} 17. f4 {[%clk 0:02:16]} 17... Bf6 {[%clk 0:02:00.6]} 18.
Qxd6 {[%clk 0:02:16.1]} 18... Qxd6 {[%clk 0:01:55.7]} 19. Nxd6 {[%clk
0:02:16.7]} 19... hxg3 {[%clk 0:01:35.3]} 20. Nxb7 {[%clk 0:02:04.3]} 20...
gxh2+ {[%clk 0:01:34.9]} 21. Kxh2 {[%clk 0:02:04.5]} 21... Nxb7 {[%clk
0:01:12.2]} 22. Bxb7 {[%clk 0:02:06.4]} 22... Rab8 {[%clk 0:01:14.1]} 23. Bc6
{[%clk 0:02:04.2]} 23... Kg7 {[%clk 0:01:08.9]} 24. Rfd1 {[%clk 0:02:00.3]}
24... e5 {[%clk 0:01:09.4]} 25. Rd7+ {[%clk 0:01:58.7]} 25... Rf7 {[%clk
0:01:08.7]} 26. c5 {[%clk 0:01:54.8]} 26... exf4 {[%clk 0:01:03.9]} 27. exf4
{[%clk 0:01:55.9]} 27... Bb2 {[%clk 0:01:01.4]} 28. Rc2 {[%clk 0:01:46.1]} 28...
Ba3 {[%clk 0:01:01.3]} 29. Ba4 {[%clk 0:01:28.4]} 29... Rc8 {[%clk 0:00:55.6]}
30. Rd5 {[%clk 0:01:17.6]} 30... Re7 {[%clk 0:00:33.3]} 31. c6 {[%clk
0:00:53.2]} 31... Re4 {[%clk 0:00:33.1]} 32. c7 {[%clk 0:00:39.3]} 32... Rh8+
{[%clk 0:00:27.6]} 33. Kg2 {[%clk 0:00:37.4]} 33... Rxf4 {[%clk 0:00:26.8]} 34.
Rd7+ {[%clk 0:00:19.9]} 34... Kf6 {[%clk 0:00:26.2]} 35. Rc4 {[%clk 0:00:19.5]}
35... Rxc4 {[%clk 0:00:23.2]} 36. bxc4 {[%clk 0:00:20.5]} 36... Rc8 {[%clk
0:00:25.1]} 37. Bb5 {[%clk 0:00:16.4]} 37... Ke5 {[%clk 0:00:24.6]} 38. Ba6
{[%clk 0:00:16]} 38... Rxc7 {[%clk 0:00:12.1]} 39. Rxc7 {[%clk 0:00:16.5]} 39...
g5 {[%clk 0:00:14]} 40. c5 {[%clk 0:00:14.5]} 40... g4 {[%clk 0:00:15.4]} 41. c6
{[%clk 0:00:14]} 41... f4 {[%clk 0:00:16.8]} 42. Rf7 {[%clk 0:00:13.2]} 42...
f3+ {[%clk 0:00:17.5]} 43. Kg3 {[%clk 0:00:14.2]} 43... Ke6 {[%clk 0:00:19]} 44.
c7 {[%clk 0:00:13]} 44... Bd6+ {[%clk 0:00:20.2]} 45. Kxg4 {[%clk 0:00:14]}
45... Kxf7 {[%clk 0:00:19.3]} 46. c8=Q {[%clk 0:00:14.1]} 46... f2 {[%clk
0:00:21.2]} 1-0

[Event "*** Biggest EVER Titled Tuesday"]
[Site "Chess.com"]
[Date "2018.04.17"]
[Round "2"]
[White "StoreySniper"]
[Black "PenguinPacks"]
[Result "1-0"]
[WhiteElo "2245"]
[BlackElo "2155"]
[TimeControl "180+2"]
[EndTime "13:22:56 PDT"]
[Termination "StoreySniper won on time"]

1. c4 {[%clk 0:02:52.1]} 1... c5 {[%clk 0:02:59.6]} 2. g3 {[%clk 0:02:53]} 2...
g6 {[%clk 0:02:59.8]} 3. Bg2 {[%clk 0:02:54.9]} 3... Bg7 {[%clk 0:03:00.9]} 4.
Nc3 {[%clk 0:02:56]} 4... Nc6 {[%clk 0:03:02.2]} 5. d3 {[%clk 0:02:56.2]} 5...
d6 {[%clk 0:03:03.7]} 6. h4 {[%clk 0:02:56.3]} 6... h5 {[%clk 0:02:57.9]} 7. Nh3
{[%clk 0:02:56.6]} 7... Nh6 {[%clk 0:02:56.1]} 8. Bd2 {[%clk 0:02:50.4]} 8...
Bd7 {[%clk 0:02:46.4]} 9. a3 {[%clk 0:02:50.9]} 9... Nf5 {[%clk 0:02:41.5]} 10.
b4 {[%clk 0:02:47.8]} 10... cxb4 {[%clk 0:01:55]} 11. axb4 {[%clk 0:02:47.7]}
11... Nxb4 {[%clk 0:01:55.9]} 12. Bxb7 {[%clk 0:02:46.7]} 12... Nd4 {[%clk
0:01:50.6]} 13. Rb1 {[%clk 0:02:28.8]} 13... Nbc2+ {[%clk 0:01:26.7]} 14. Kf1
{[%clk 0:02:28.9]} 14... Rb8 {[%clk 0:01:27.5]} 15. Bg2 {[%clk 0:02:27.2]} 15...
Na3 {[%clk 0:00:44.9]} 16. Rxb8 {[%clk 0:01:49.4]} 16... Qxb8 {[%clk 0:00:46.8]}
17. e3 {[%clk 0:01:50.4]} 17... Nb3 {[%clk 0:00:32.9]} 18. Be1 {[%clk
0:01:46.4]} 18... O-O {[%clk 0:00:26.5]} 19. Ng5 {[%clk 0:01:45.5]} 19... Nc5
{[%clk 0:00:24.1]} 20. Nd5 {[%clk 0:01:45.1]} 20... Re8 {[%clk 0:00:16.5]} 21.
Bb4 {[%clk 0:01:45.6]} 21... Ba4 {[%clk 0:00:10]} 22. Qf3 {[%clk 0:01:46.1]}
22... f6 {[%clk 0:00:08]} 23. Ne4 {[%clk 0:01:39.3]} 23... Nc2 {[%clk
0:00:07.9]} 24. Bxc5 {[%clk 0:00:39.7]} 24... dxc5 {[%clk 0:00:09.8]} 25. Kg1
{[%clk 0:00:39.3]} 25... Qd8 {[%clk 0:00:07.2]} 26. Bh3 {[%clk 0:00:38]} 26...
e6 {[%clk 0:00:07.5]} 27. Nf4 {[%clk 0:00:33.9]} 27... Kf7 {[%clk 0:00:06.5]}
28. Kh2 {[%clk 0:00:27.5]} 28... e5 {[%clk 0:00:06.7]} 29. Nd5 {[%clk
0:00:22.4]} 29... Nb4 {[%clk 0:00:05.8]} 30. g4 {[%clk 0:00:18.6]} 30... hxg4
{[%clk 0:00:04.8]} 31. Qxg4 {[%clk 0:00:18.3]} 31... Nxd5 {[%clk 0:00:05.7]} 32.
cxd5 {[%clk 0:00:19.3]} 32... Qxd5 {[%clk 0:00:06.4]} 33. h5 {[%clk 0:00:20.4]}
33... g5 {[%clk 0:00:06]} 34. h6 {[%clk 0:00:21]} 34... Bxh6 {[%clk 0:00:06.2]}
35. Qh5+ {[%clk 0:00:20.8]} 35... Ke7 {[%clk 0:00:05.8]} 36. Qxh6 {[%clk
0:00:20.8]} 36... Rf8 {[%clk 0:00:07.4]} 37. Qh7+ {[%clk 0:00:18.7]} 37... Rf7
{[%clk 0:00:08.5]} 38. Qf5 {[%clk 0:00:20.4]} 38... Qxd3 {[%clk 0:00:06.3]} 39.
Ng3 {[%clk 0:00:19.9]} 39... Qd6 {[%clk 0:00:07.1]} 40. Rb1 {[%clk 0:00:18.5]}
40... Bc6 {[%clk 0:00:08]} 41. Ra1 {[%clk 0:00:18]} 41... Kf8 {[%clk 0:00:05.7]}
42. Qg6 {[%clk 0:00:17.2]} 42... Qd2 {[%clk 0:00:04.6]} 43. Rf1 {[%clk
0:00:11.5]} 43... Bb5 {[%clk 0:00:04.8]} 44. Be6 {[%clk 0:00:10.1]} 1-0

[Event "*** Biggest EVER Titled Tuesday"]
[Site "Chess.com"]
[Date "2018.04.17"]
[Round "2"]
[White "hblanco"]
[Black "catalin009"]
[Result "0-1"]
[WhiteElo "2371"]
[BlackElo "2416"]
[TimeControl "180+2"]
[EndTime "13:22:59 PDT"]
[Termination "catalin009 won by resignation"]

1. e4 {[%clk 0:03:00.3]} 1... c5 {[%clk 0:03:00.2]} 2. Nc3 {[%clk 0:03:01]} 2...
Nc6 {[%clk 0:03:01.6]} 3. Bb5 {[%clk 0:03:00]} 3... Nd4 {[%clk 0:02:47.5]} 4.
Nf3 {[%clk 0:02:57.3]} 4... g6 {[%clk 0:02:38.3]} 5. O-O {[%clk 0:02:46.1]} 5...
Bg7 {[%clk 0:02:37.9]} 6. Bd3 {[%clk 0:02:23.5]} 6... Nc6 {[%clk 0:02:17.6]} 7.
Bb5 {[%clk 0:02:18.1]} 7... d6 {[%clk 0:02:12.7]} 8. d4 {[%clk 0:02:15.9]} 8...
cxd4 {[%clk 0:02:12.4]} 9. Nxd4 {[%clk 0:02:15.2]} 9... Bd7 {[%clk 0:02:13.5]}
10. Be3 {[%clk 0:02:03.3]} 10... Nf6 {[%clk 0:02:12.4]} 11. f3 {[%clk
0:01:57.8]} 11... O-O {[%clk 0:02:10.8]} 12. Qd2 {[%clk 0:01:56.2]} 12... Rc8
{[%clk 0:01:56.9]} 13. Nd5 {[%clk 0:01:26.9]} 13... Nxd5 {[%clk 0:01:36.1]} 14.
exd5 {[%clk 0:01:23.6]} 14... Nxd4 {[%clk 0:01:36.8]} 15. Bxd7 {[%clk
0:01:21.5]} 15... Rxc2 {[%clk 0:01:21]} 16. Qd3 {[%clk 0:01:05.6]} 16... Qxd7
{[%clk 0:01:20.9]} 17. Bxd4 {[%clk 0:00:59.2]} 17... Bxd4+ {[%clk 0:01:20.2]}
18. Qxd4 {[%clk 0:01:01.1]} 18... Qb5 {[%clk 0:01:14.3]} 19. b3 {[%clk
0:00:54.5]} 19... Qc5 {[%clk 0:01:09.6]} 20. Qxc5 {[%clk 0:00:51.1]} 20... Rxc5
{[%clk 0:01:09.3]} 21. Rad1 {[%clk 0:00:50.9]} 21... Rfc8 {[%clk 0:01:08.7]} 22.
Rfe1 {[%clk 0:00:52.3]} 22... Kf8 {[%clk 0:01:08.9]} 23. Re4 {[%clk 0:00:53.4]}
23... Rc2 {[%clk 0:01:08.3]} 24. Rde1 {[%clk 0:00:53.3]} 24... Rxa2 {[%clk
0:01:05.5]} 25. Rxe7 {[%clk 0:00:53.4]} 25... Rcc2 {[%clk 0:01:06.3]} 26. Rxb7
{[%clk 0:00:49.6]} 26... Rxg2+ {[%clk 0:01:06.8]} 27. Kh1 {[%clk 0:00:50]} 27...
Rxh2+ {[%clk 0:01:07.8]} 28. Kg1 {[%clk 0:00:51.1]} 28... Rhg2+ {[%clk
0:00:53.5]} 29. Kh1 {[%clk 0:00:51.2]} 29... Rgf2 {[%clk 0:00:54.8]} 30. Kg1
{[%clk 0:00:46.7]} 30... Rxf3 {[%clk 0:00:53.8]} 31. Ree7 {[%clk 0:00:43.7]}
31... Rb2 {[%clk 0:00:30.9]} 32. Rxa7 {[%clk 0:00:37]} 32... Rbxb3 {[%clk
0:00:31.6]} 33. Red7 {[%clk 0:00:35.6]} 33... Rb2 {[%clk 0:00:20.6]} 34. Rxd6
{[%clk 0:00:30.5]} 34... Rd3 {[%clk 0:00:21.4]} 35. Ra1 {[%clk 0:00:30.5]} 35...
Rbd2 {[%clk 0:00:21.3]} 36. Ra7 {[%clk 0:00:22.1]} 36... Rxd5 {[%clk 0:00:19.7]}
37. Rf6 {[%clk 0:00:22.8]} 37... Rd7 {[%clk 0:00:19.2]} 38. Ra8+ {[%clk
0:00:21.8]} 38... Kg7 {[%clk 0:00:20]} 39. Rfa6 {[%clk 0:00:19.4]} 39... Rb2
{[%clk 0:00:20.3]} 40. Ra1 {[%clk 0:00:18.5]} 40... h5 {[%clk 0:00:21.8]} 41.
R8a4 {[%clk 0:00:17.9]} 41... Rdd2 {[%clk 0:00:22]} 42. Rf4 {[%clk 0:00:16.6]}
42... Rg2+ {[%clk 0:00:22.4]} 43. Kf1 {[%clk 0:00:16.1]} 43... Rh2 {[%clk
0:00:23.6]} 44. Kg1 {[%clk 0:00:17.1]} 44... Rbg2+ {[%clk 0:00:24.4]} 45. Kf1
{[%clk 0:00:17.7]} 45... Rh1+ {[%clk 0:00:25.9]} 46. Kxg2 {[%clk 0:00:19]} 46...
Rxa1 {[%clk 0:00:27.4]} 0-1

[Event "*** Biggest EVER Titled Tuesday"]
[Site "Chess.com"]
[Date "2018.04.17"]
[Round "2"]
[White "Robert_Chessmood"]
[Black "Justmig"]
[Result "1-0"]
[WhiteElo "2766"]
[BlackElo "2529"]
[TimeControl "180+2"]
[EndTime "13:23:01 PDT"]
[Termination "Robert_Chessmood won by resignation"]

1. e4 {[%clk 0:03:01.9]} 1... c6 {[%clk 0:02:58.2]} 2. d4 {[%clk 0:03:02.2]}
2... d5 {[%clk 0:03:00.1]} 3. exd5 {[%clk 0:03:03.4]} 3... cxd5 {[%clk
0:03:00.8]} 4. Nf3 {[%clk 0:03:05.3]} 4... Nc6 {[%clk 0:02:59.9]} 5. Bb5 {[%clk
0:03:05.1]} 5... Bg4 {[%clk 0:02:59.2]} 6. c4 {[%clk 0:03:04.8]} 6... dxc4
{[%clk 0:02:31.5]} 7. Nc3 {[%clk 0:02:22.7]} 7... e6 {[%clk 0:02:18.8]} 8. O-O
{[%clk 0:02:19.2]} 8... Ne7 {[%clk 0:02:12.4]} 9. h3 {[%clk 0:02:13.5]} 9...
Bxf3 {[%clk 0:02:11.7]} 10. Qxf3 {[%clk 0:02:13.7]} 10... Rc8 {[%clk 0:01:42.2]}
11. Be3 {[%clk 0:01:53.6]} 11... a6 {[%clk 0:01:33.9]} 12. Bxc4 {[%clk
0:01:50.5]} 12... Nxd4 {[%clk 0:01:31.1]} 13. Bxd4 {[%clk 0:01:49]} 13... Rxc4
{[%clk 0:01:31.3]} 14. Be3 {[%clk 0:01:33.8]} 14... Qc8 {[%clk 0:01:09.1]} 15.
Rad1 {[%clk 0:01:22.9]} 15... Nf5 {[%clk 0:01:07.8]} 16. Bb6 {[%clk 0:01:18.8]}
16... Be7 {[%clk 0:01:06.7]} 17. g4 {[%clk 0:00:58]} 17... Nh4 {[%clk
0:01:03.2]} 18. Qh1 {[%clk 0:00:40.7]} 18... O-O {[%clk 0:01:01.9]} 19. Rd3
{[%clk 0:00:37.9]} 19... Rc6 {[%clk 0:00:57.2]} 20. Be3 {[%clk 0:00:33.9]} 20...
f5 {[%clk 0:00:44.9]} 21. f4 {[%clk 0:00:29.4]} 21... Bc5 {[%clk 0:00:42.6]} 22.
Bxc5 {[%clk 0:00:27.3]} 22... Rxc5 {[%clk 0:00:44.5]} 23. Qh2 {[%clk 0:00:19.1]}
23... Rc4 {[%clk 0:00:42.5]} 24. Qg3 {[%clk 0:00:17.9]} 24... Ng6 {[%clk
0:00:44]} 25. g5 {[%clk 0:00:12.5]} 25... Qc7 {[%clk 0:00:37.3]} 26. Rdf3 {[%clk
0:00:07.4]} 26... Rd8 {[%clk 0:00:36.2]} 27. h4 {[%clk 0:00:08]} 27... Rdd4
{[%clk 0:00:37.1]} 28. Ne2 {[%clk 0:00:08.9]} 28... Re4 {[%clk 0:00:38]} 29.
R1f2 {[%clk 0:00:08]} 29... Rxe2 {[%clk 0:00:28]} 30. Rxe2 {[%clk 0:00:08.7]}
30... Nxf4 {[%clk 0:00:29.5]} 31. Ref2 {[%clk 0:00:05]} 31... e5 {[%clk
0:00:20]} 32. h5 {[%clk 0:00:03.7]} 32... Nxh5 {[%clk 0:00:18.5]} 33. Rxf5
{[%clk 0:00:03.9]} 33... Rc1+ {[%clk 0:00:18.7]} 34. Kh2 {[%clk 0:00:04.8]}
34... Rh1+ {[%clk 0:00:16.9]} 35. Kg2 {[%clk 0:00:06]} 35... Nf4+ {[%clk
0:00:16.6]} 36. Kxh1 {[%clk 0:00:04.1]} 36... Qc1+ {[%clk 0:00:08.8]} 37. Kh2
{[%clk 0:00:03.5]} 37... g6 {[%clk 0:00:04.8]} 38. R5xf4 {[%clk 0:00:04]} 38...
exf4 {[%clk 0:00:05.7]} 39. Qxf4 {[%clk 0:00:05.9]} 39... Qxf4+ {[%clk 0:00:04]}
40. Rxf4 {[%clk 0:00:07.8]} 40... h6 {[%clk 0:00:04.9]} 41. Kg3 {[%clk
0:00:08.9]} 41... hxg5 {[%clk 0:00:06.8]} 42. Rd4 {[%clk 0:00:09.8]} 42... Kf7
{[%clk 0:00:07.1]} 43. Rd7+ {[%clk 0:00:11.7]} 43... Ke6 {[%clk 0:00:06.6]} 44.
Rxb7 {[%clk 0:00:13.6]} 44... a5 {[%clk 0:00:08.5]} 45. Ra7 {[%clk 0:00:14.7]}
1-0

[Event "*** Biggest EVER Titled Tuesday"]
[Site "Chess.com"]
[Date "2018.04.17"]
[Round "2"]
[White "VeraNebolsina"]
[Black "Jbd735"]
[Result "1-0"]
[WhiteElo "2445"]
[BlackElo "2271"]
[TimeControl "180+2"]
[EndTime "13:23:10 PDT"]
[Termination "VeraNebolsina won by resignation"]

1. e4 {[%clk 0:03:01.9]} 1... e5 {[%clk 0:03:00.3]} 2. Nf3 {[%clk 0:02:59.9]}
2... Nc6 {[%clk 0:03:00.4]} 3. Bc4 {[%clk 0:02:57.5]} 3... Bc5 {[%clk
0:03:00.3]} 4. O-O {[%clk 0:02:56.4]} 4... Nf6 {[%clk 0:03:00.5]} 5. d3 {[%clk
0:02:57]} 5... h6 {[%clk 0:02:55.4]} 6. c3 {[%clk 0:02:56.6]} 6... d6 {[%clk
0:02:24.2]} 7. b4 {[%clk 0:02:48.9]} 7... Bb6 {[%clk 0:02:24.8]} 8. Qb3 {[%clk
0:02:49.6]} 8... O-O {[%clk 0:02:23.6]} 9. h3 {[%clk 0:02:50.4]} 9... Qe7 {[%clk
0:02:18.1]} 10. a4 {[%clk 0:02:44.1]} 10... a6 {[%clk 0:02:18.6]} 11. Na3 {[%clk
0:02:41.4]} 11... Be6 {[%clk 0:02:17.6]} 12. Bxe6 {[%clk 0:02:33.2]} 12... Qxe6
{[%clk 0:02:17.5]} 13. Qxe6 {[%clk 0:02:33.6]} 13... fxe6 {[%clk 0:02:18.1]} 14.
Nc4 {[%clk 0:02:34.6]} 14... Ba7 {[%clk 0:02:13.7]} 15. b5 {[%clk 0:02:35.6]}
15... Ne7 {[%clk 0:02:10.2]} 16. Ba3 {[%clk 0:02:12.5]} 16... Nc8 {[%clk
0:01:26.2]} 17. Rab1 {[%clk 0:01:58.9]} 17... axb5 {[%clk 0:01:15.4]} 18. Rxb5
{[%clk 0:01:58.4]} 18... Nb6 {[%clk 0:01:05.3]} 19. Nfd2 {[%clk 0:01:22.6]}
19... Nxa4 {[%clk 0:00:47.3]} 20. Rxb7 {[%clk 0:01:23.3]} 20... Rf7 {[%clk
0:00:46.1]} 21. Bb4 {[%clk 0:01:17.1]} 21... Nc5 {[%clk 0:00:41.6]} 22. Bxc5
{[%clk 0:01:05.7]} 22... Bxc5 {[%clk 0:00:43.5]} 23. Nb3 {[%clk 0:01:05.1]}
23... Nd7 {[%clk 0:00:10]} 24. Rxc7 {[%clk 0:01:00.9]} 24... Bb6 {[%clk
0:00:05]} 25. Rb7 {[%clk 0:00:59.9]} 25... Bc5 {[%clk 0:00:03.1]} 26. Nxc5
{[%clk 0:00:55.6]} 26... Nxc5 {[%clk 0:00:03.5]} 27. Rxf7 {[%clk 0:00:55.4]}
27... Kxf7 {[%clk 0:00:05.4]} 28. f4 {[%clk 0:00:51.8]} 28... Nxd3 {[%clk
0:00:04.2]} 29. fxe5+ {[%clk 0:00:52]} 29... Kg6 {[%clk 0:00:04.3]} 30. exd6
{[%clk 0:00:51.1]} 30... Rc8 {[%clk 0:00:05.3]} 31. d7 {[%clk 0:00:45.4]} 31...
Rd8 {[%clk 0:00:06.2]} 32. Rd1 {[%clk 0:00:45.1]} 32... Nc5 {[%clk 0:00:05.1]}
33. Nb6 {[%clk 0:00:36.4]} 33... Kf6 {[%clk 0:00:04.6]} 34. Rd6 {[%clk
0:00:25.9]} 34... Nxe4 {[%clk 0:00:03.6]} 35. Rc6 {[%clk 0:00:26.6]} 35... Ke7
{[%clk 0:00:03.9]} 36. Kf1 {[%clk 0:00:20.2]} 36... Nf6 {[%clk 0:00:04.9]} 37.
Rc7 {[%clk 0:00:17.6]} 37... Nxd7 {[%clk 0:00:05.7]} 38. Ke2 {[%clk 0:00:12.3]}
38... Kd6 {[%clk 0:00:06.3]} 39. Rxd7+ {[%clk 0:00:13]} 39... Rxd7 {[%clk
0:00:08.2]} 40. Nxd7 {[%clk 0:00:14]} 40... Kxd7 {[%clk 0:00:10.1]} 41. Ke3
{[%clk 0:00:15.3]} 41... Kd6 {[%clk 0:00:11.4]} 42. Kd4 {[%clk 0:00:16.2]} 42...
g5 {[%clk 0:00:11.9]} 43. g4 {[%clk 0:00:16.2]} 43... Kd7 {[%clk 0:00:11]} 44.
Ke5 {[%clk 0:00:17.1]} 44... Ke7 {[%clk 0:00:12.3]} 45. c4 {[%clk 0:00:18.4]}
45... Kd7 {[%clk 0:00:13.3]} 46. c5 {[%clk 0:00:19.2]} 46... Kc6 {[%clk
0:00:14.9]} 47. Kxe6 {[%clk 0:00:19.9]} 47... Kxc5 {[%clk 0:00:16.5]} 48. Kf6
{[%clk 0:00:21.3]} 48... Kd5 {[%clk 0:00:18.1]} 49. Kg6 {[%clk 0:00:22.8]} 49...
Ke5 {[%clk 0:00:18]} 50. Kxh6 {[%clk 0:00:24.3]} 50... Kf4 {[%clk 0:00:18.7]}
51. Kh5 {[%clk 0:00:23.5]} 51... Kg3 {[%clk 0:00:19.6]} 52. Kxg5 {[%clk
0:00:24.6]} 52... Kxh3 {[%clk 0:00:21.5]} 53. Kf5 {[%clk 0:00:25.7]} 53... Kh4
{[%clk 0:00:22.3]} 54. g5 {[%clk 0:00:26.9]} 54... Kh5 {[%clk 0:00:24]} 55. g6
{[%clk 0:00:27.8]} 55... Kh6 {[%clk 0:00:25.9]} 56. Kf6 {[%clk 0:00:29]} 56...
Kh5 {[%clk 0:00:27.5]} 57. g7 {[%clk 0:00:30.3]} 57... Kh6 {[%clk 0:00:28.9]}
58. g8=Q {[%clk 0:00:30]} 1-0

[Event "*** Biggest EVER Titled Tuesday"]
[Site "Chess.com"]
[Date "2018.04.17"]
[Round "2"]
[White "BergenChessAcademy"]
[Black "SidArun"]
[Result "1-0"]
[WhiteElo "2198"]
[BlackElo "2141"]
[TimeControl "180+2"]
[EndTime "13:23:11 PDT"]
[Termination "BergenChessAcademy won by resignation"]

1. Nf3 {[%clk 0:03:01.9]} 1... e6 {[%clk 0:03:00.5]} 2. c4 {[%clk 0:02:57.9]}
2... g5 {[%clk 0:02:59.8]} 3. Nc3 {[%clk 0:02:55.7]} 3... Bg7 {[%clk 0:02:59]}
4. g3 {[%clk 0:02:55.6]} 4... d5 {[%clk 0:02:56.7]} 5. d4 {[%clk 0:02:54.9]}
5... c6 {[%clk 0:02:57]} 6. Bxg5 {[%clk 0:02:54.7]} 6... f6 {[%clk 0:02:44.5]}
7. Bc1 {[%clk 0:02:45.2]} 7... dxc4 {[%clk 0:02:45.5]} 8. a4 {[%clk 0:02:44.2]}
8... e5 {[%clk 0:02:37.9]} 9. e4 {[%clk 0:02:39.5]} 9... Bg4 {[%clk 0:02:29]}
10. d5 {[%clk 0:02:34]} 10... cxd5 {[%clk 0:02:27.9]} 11. Nxd5 {[%clk
0:02:32.9]} 11... Nc6 {[%clk 0:02:15.6]} 12. h3 {[%clk 0:02:16.8]} 12... Bh5
{[%clk 0:01:55.8]} 13. g4 {[%clk 0:02:13.3]} 13... Bf7 {[%clk 0:01:53.7]} 14.
Bxc4 {[%clk 0:02:10.7]} 14... Nge7 {[%clk 0:01:53.8]} 15. O-O {[%clk 0:02:08.5]}
15... Nxd5 {[%clk 0:01:41.2]} 16. Bxd5 {[%clk 0:02:00.4]} 16... Bxd5 {[%clk
0:01:41.3]} 17. exd5 {[%clk 0:01:52.3]} 17... Ne7 {[%clk 0:01:40.2]} 18. d6
{[%clk 0:01:49.9]} 18... Nc8 {[%clk 0:01:40.3]} 19. Qd5 {[%clk 0:01:37.1]} 19...
Nxd6 {[%clk 0:01:33]} 20. Rd1 {[%clk 0:00:53.2]} 20... Ke7 {[%clk 0:01:33.3]}
21. Nh4 {[%clk 0:00:49.8]} 21... Bf8 {[%clk 0:00:52.9]} 22. Be3 {[%clk
0:00:35.9]} 22... b6 {[%clk 0:00:37]} 23. Rd2 {[%clk 0:00:28.6]} 23... Qc7
{[%clk 0:00:21.1]} 24. Qxd6+ {[%clk 0:00:24.3]} 24... Qxd6 {[%clk 0:00:21.5]}
25. Nf5+ {[%clk 0:00:25.2]} 25... Ke6 {[%clk 0:00:22.8]} 26. Nxd6 {[%clk
0:00:25.9]} 26... Bxd6 {[%clk 0:00:23.9]} 27. a5 {[%clk 0:00:25.4]} 27... b5
{[%clk 0:00:23.3]} 28. Rc1 {[%clk 0:00:23.9]} 28... Rhc8 {[%clk 0:00:23.5]} 29.
Rxc8 {[%clk 0:00:24.2]} 29... Rxc8 {[%clk 0:00:24.2]} 30. Bxa7 {[%clk
0:00:20.7]} 30... Bb4 {[%clk 0:00:25.2]} 31. Re2 {[%clk 0:00:21.7]} 31... Bxa5
{[%clk 0:00:25.9]} 32. f4 {[%clk 0:00:22.8]} 32... Rc1+ {[%clk 0:00:26.6]} 33.
Kg2 {[%clk 0:00:23.5]} 33... Rc4 {[%clk 0:00:27.7]} 34. fxe5 {[%clk 0:00:24.2]}
34... fxe5 {[%clk 0:00:28.7]} 35. Bb8 {[%clk 0:00:25]} 35... e4 {[%clk
0:00:30.1]} 36. Bf4 {[%clk 0:00:24.8]} 36... Kd5 {[%clk 0:00:30]} 37. g5 {[%clk
0:00:25.5]} 37... Bd8 {[%clk 0:00:30.2]} 38. Kg3 {[%clk 0:00:24.8]} 38... b4
{[%clk 0:00:30.5]} 39. Rd2+ {[%clk 0:00:25.8]} 39... Rd4 {[%clk 0:00:31.3]} 40.
Re2 {[%clk 0:00:24.6]} 40... Rd3+ {[%clk 0:00:32.2]} 41. Kg4 {[%clk 0:00:25.2]}
41... b3 {[%clk 0:00:31.7]} 42. Kf5 {[%clk 0:00:25.8]} 42... Rf3 {[%clk
0:00:31.7]} 43. Rxe4 {[%clk 0:00:25.1]} 43... Bc7 {[%clk 0:00:31.5]} 44. Rb4
{[%clk 0:00:25.5]} 44... Bxf4 {[%clk 0:00:30.9]} 45. Rxf4 {[%clk 0:00:26.4]}
45... Rxh3 {[%clk 0:00:32.5]} 46. Rb4 {[%clk 0:00:27]} 46... Kc5 {[%clk
0:00:32.7]} 47. Rb8 {[%clk 0:00:27.4]} 47... Rf3+ {[%clk 0:00:34.1]} 48. Kg4
{[%clk 0:00:28.4]} 48... Rd3 {[%clk 0:00:34.6]} 49. Kf4 {[%clk 0:00:29.2]} 49...
Rd4+ {[%clk 0:00:35.5]} 50. Kf5 {[%clk 0:00:30.1]} 50... Kc4 {[%clk 0:00:36.9]}
51. Rc8+ {[%clk 0:00:29.5]} 51... Kd3 {[%clk 0:00:37.6]} 52. Rc3+ {[%clk
0:00:30.2]} 52... Kd2 {[%clk 0:00:35.7]} 53. Rxb3 {[%clk 0:00:31.2]} 53... Rd5+
{[%clk 0:00:34.3]} 54. Kg4 {[%clk 0:00:32.1]} 54... Rd6 {[%clk 0:00:34.8]} 55.
Kh5 {[%clk 0:00:32.8]} 55... Rd7 {[%clk 0:00:33.7]} 56. Rb6 {[%clk 0:00:33.4]}
56... Kc2 {[%clk 0:00:35]} 57. Kh6 {[%clk 0:00:33.4]} 1-0